fUSD/lending_fUSD_20260111
["ID","MTS","AMOUNT","RATE_DAILY","PERIOD"]
[401286706,1768107040454,-543.32345137,0.00017203,2]
[401286708,1768107040463,-500.0,0.00017203,2]
[401286710,1768107040472,-500.0,0.00017203,2]
[401286712,1768107040482,-500.0,0.00017203,2]
[401286714,1768107040491,-500.0,0.00017203,2]
[401286716,1768107040501,-500.0,0.00017203,2]
[401286718,1768107040511,-500.0,0.00017203,2]
[401286720,1768107040520,-500.0,0.00017203,2]
[401286721,1768107040530,-500.0,0.00017203,2]
[401286724,1768107040540,-500.0,0.00017203,2]
[401286725,1768107040550,-500.0,0.00017203,2]
[401286728,1768107040559,-500.0,0.00017203,2]
[401286730,1768107040569,-500.0,0.00017203,2]
[401286732,1768107040578,-500.0,0.00017203,2]
[401286733,1768107040587,-500.0,0.00017203,2]
[401286735,1768107040598,-500.0,0.00017203,2]
[401286737,1768107040608,-500.0,0.00017203,2]
[401286739,1768107040617,-500.0,0.00017203,2]
[401286741,1768107040626,-500.0,0.00017203,2]
[401286743,1768107040636,-500.0,0.00017203,2]
[401286746,1768107040645,-500.0,0.00017203,2]
[401286748,1768107040655,-500.0,0.00017203,2]
[401286749,1768107040664,-500.0,0.00017203,2]
[401286752,1768107040674,-500.0,0.00017203,2]
[401286754,1768107040683,-500.0,0.00017203,2]
[401286756,1768107040693,-500.0,0.00017203,2]
[401286758,1768107040703,-500.0,0.00017203,2]
[401286759,1768107040712,-500.0,0.00017203,2]
[401286761,1768107040721,-500.0,0.00017203,2]
[401286764,1768107040731,-500.0,0.00017203,2]
[401286765,1768107040740,-500.0,0.00017203,2]
[401286768,1768107040749,-500.0,0.00017203,2]
[401286770,1768107040758,-428.06751154,0.00017203,2]
[401286772,1768107040767,-500.0,0.00017203,2]
[401286774,1768107040776,-500.0,0.00017203,2]
[401286776,1768107040785,-500.0,0.00017203,2]
[401286777,1768107040795,-500.0,0.00017203,2]
[401286780,1768107040804,-500.0,0.00017203,2]
[401286782,1768107040814,-500.0,0.00017203,2]
[401286784,1768107040823,-500.0,0.00017203,2]
[401286785,1768107040832,-686.91,0.00017203,2]
[401286788,1768107040842,-184.92024812,0.00017207,2]
[401286790,1768107040852,-500.0,0.00017207,2]
[401286792,1768107040861,-167.96901161,0.00017207,2]
[401286794,1768107040870,-500.0,0.00017207,2]
[401286796,1768107040879,-172.33330204,0.00017207,2]
[401286798,1768107040888,-500.0,0.00017207,2]
[401286800,1768107040897,-225.32435042,0.00017207,2]
[401286801,1768107040907,-500.0,0.00017207,2]
[401286803,1768107040917,-500.0,0.00017207,2]
[401286805,1768107040926,-500.0,0.00017207,2]
[401286807,1768107040934,-500.0,0.00017207,2]
[401286809,1768107040944,-500.0,0.00017207,2]
[401286811,1768107040953,-549.35197632,0.00017207,2]
[401286813,1768107040962,-500.0,0.00017207,2]
[401286815,1768107040971,-500.0,0.00017207,2]
[401286817,1768107040980,-500.0,0.00017207,2]
[401286819,1768107040989,-500.0,0.00017207,2]
[401286821,1768107040998,-174.72974507,0.00017207,2]
[401286823,1768107041008,-1927.66318088,0.00017207,5]
[401286825,1768107041017,-512.95474933,0.00017207,2]
[401286827,1768107041031,-7755.87453843,0.00017211,2]
[401286829,1768107041041,-150.0,0.00017212,2]
[401286831,1768107041050,-380.1,0.00017242,2]
[401286833,1768107041059,-4021.83,0.00017278,2]
[401286835,1768107041070,-10209.98515566,0.00017288,2]
[401286837,1768107041079,-266.45335222,0.000173,2]
[401286839,1768107041088,-150.0,0.00017325,2]
[401286841,1768107041098,-10209.98515566,0.00017375,2]
[401286843,1768107041108,-150.0,0.000174,2]
[401286844,1768107041117,-150.0,0.000174,2]
[401286846,1768107041126,-150.0,0.000174,2]
[401286848,1768107041136,-7755.87453843,0.00017422,2]
[401286850,1768107041145,-150.0,0.00017437,2]
[401286852,1768107041155,-10209.98515566,0.00017463,2]
[401286854,1768107041163,-686.91,0.00017477,2]
[401286856,1768107041173,-150.0,0.0001755,2]
[401286858,1768107041184,-150.0,0.0001755,2]
[401286860,1768107041194,-150.0,0.0001755,2]
[401286862,1768107041203,-10209.98515566,0.0001755,2]
[401286864,1768107041212,-10209.98515566,0.00017638,2]
[401286866,1768107041222,-150.0,0.00017662,2]
[401286868,1768107041232,-1000.0,0.000177,2]
[401286870,1768107041241,-10209.98515566,0.00017725,2]
[401286872,1768107041252,-544.33,0.00017728,2]
[401286874,1768107041261,-500.0,0.0001773,2]
[401286876,1768107041270,-686.91,0.00017751,2]
[401286878,1768107041279,-317.74732338,0.00017754,2]
[401286880,1768107041288,-281.45868937,0.00017754,2]
[401286882,1768107041298,-200.0,0.00017764,2]
[401286884,1768107041308,-250.0,0.00017764,2]
[401286886,1768107041317,-150.0,0.00017775,2]
[401286912,1768107041545,-1680.0,0.00017796,2]
[401286916,1768107041573,-1000.0,0.000178,2]
[401286918,1768107041583,-4021.83,0.00017803,2]
[401286920,1768107041593,-10209.98515566,0.00017813,2]
[401286922,1768107041602,-225.79132058,0.00017877,2]
[401286924,1768107041611,-150.0,0.00017887,2]
[401286926,1768107041621,-225.79132056,0.00017889,2]
[401286928,1768107041630,-533.50662158,0.000179,2]
[401286930,1768107041640,-10209.98515566,0.000179,2]
[401286932,1768107041649,-306.75042235,0.000179,2]
[401286934,1768107041658,-4332.47251881,0.000179,2]
[401286936,1768107041667,-225.79132056,0.000179,2]
[401286938,1768107041676,-225.65669469,0.00017973,2]
[401286940,1768107041686,-501.57832546,0.00017973,2]
[401286941,1768107041695,-500.0,0.00017973,2]
[401286942,1768107041704,-500.0,0.00017973,2]
[401286943,1768107041714,-500.0,0.00017973,2]
[401286944,1768107041723,-500.0,0.00017973,2]
[401286945,1768107041733,-500.0,0.00017973,2]
[401286946,1768107041742,-500.0,0.00017973,2]
[401286947,1768107041751,-500.0,0.00017973,2]
[401286948,1768107041761,-181.18183049,0.00017973,2]
[401286949,1768107041771,-150.0,0.00017973,2]
[401286950,1768107041780,-150.0,0.00017973,2]
[401286951,1768107041790,-10234.6085212,0.00017977,2]
[401286952,1768107041799,-2468.6329306,0.00017977,2]
[401286953,1768107041808,-347190.7607478,0.00017977,2]
[401286955,1768107041817,-7360.1093448,0.00017977,2]
[401286956,1768107041827,-3100.3757351,0.00017977,2]
[401286958,1768107041836,-159.476491,0.00017977,2]
[401286960,1768107041845,-151.0,0.00017977,2]
[401286963,1768107041855,-151.0,0.00017977,2]
[401286964,1768107041864,-151.0,0.00017977,2]
[401286966,1768107041874,-151.0,0.00017977,2]
[401286969,1768107041884,-151.0,0.00017977,2]
[401286970,1768107041893,-151.0,0.00017977,2]
[401286973,1768107041907,-151.0,0.00017977,2]
[401286975,1768107041916,-151.0,0.00017977,2]
[401286977,1768107041925,-151.0,0.00017977,2]
[401286979,1768107041934,-151.0,0.00017977,2]
[401286981,1768107041943,-151.0,0.00017977,2]
[401286983,1768107041952,-151.0,0.00017977,2]
[401286985,1768107041962,-151.0,0.00017977,2]
[401286987,1768107041971,-151.0,0.00017977,2]
[401286989,1768107041980,-151.0,0.00017977,2]
[401286991,1768107041989,-151.0,0.00017977,2]
[401286993,1768107041998,-151.0,0.00017977,2]
[401286995,1768107042007,-152.847939,0.00017977,2]
[401286997,1768107042016,-151.0,0.00017977,2]
[401286999,1768107042026,-151.0,0.00017977,2]
[401287001,1768107042036,-151.0,0.00017977,2]
[401287003,1768107042046,-151.0,0.00017977,2]
[401287004,1768107042056,-151.0,0.00017977,2]
[401287007,1768107042067,-151.0,0.00017977,2]
[401287009,1768107042075,-151.0,0.00017977,2]
[401287010,1768107042085,-151.0,0.00017977,2]
[401287013,1768107042095,-151.0,0.00017977,2]
[401287015,1768107042105,-151.0,0.00017977,2]
[401287017,1768107042115,-151.0,0.00017977,2]
[401287019,1768107042128,-151.0,0.00017977,2]
[401287021,1768107042137,-241.255095,0.00017977,2]
[401287022,1768107042149,-151.0,0.00017977,2]
[401287025,1768107042158,-159.713786,0.00017977,2]
[401287027,1768107042168,-151.0,0.00017977,2]
[401287029,1768107042177,-192.27514,0.00017977,2]
[401287031,1768107042186,-151.0,0.00017977,2]
[401287032,1768107042196,-151.0,0.00017977,2]
[401287035,1768107042205,-151.0,0.00017977,2]
[401287037,1768107042215,-151.0,0.00017977,2]
[401287039,1768107042228,-155.267529,0.00017977,2]
[401287040,1768107042237,-156.847329,0.00017977,2]
[401287042,1768107042247,-151.0,0.00017977,2]
[401287044,1768107042257,-151.0,0.00017977,2]
[401287046,1768107042267,-151.0,0.00017977,2]
[401287048,1768107042277,-151.0,0.00017977,2]
[401287051,1768107042287,-214.469555,0.00017977,2]
[401287052,1768107042297,-151.0,0.00017977,2]
[401287054,1768107042306,-151.0,0.00017977,2]
[401287057,1768107042315,-151.0,0.00017977,2]
[401287058,1768107042324,-151.0,0.00017977,2]
[401287060,1768107042334,-151.0,0.00017977,2]
[401287062,1768107042343,-151.0,0.00017977,2]
[401287065,1768107042353,-151.0,0.00017977,2]
[401287068,1768107042374,-151.0,0.00017977,2]
[401287070,1768107042384,-151.0,0.00017977,2]
[401287072,1768107042395,-75697.2644177,0.00017977,2]
[401287074,1768107042404,-151.0,0.00017977,2]
[401287076,1768107042413,-151.0,0.00017977,2]
[401287078,1768107042423,-151.0,0.00017977,2]
[401287079,1768107042432,-166.118461,0.00017977,2]
[401287082,1768107042442,-181.441627,0.00017977,2]
[401287083,1768107042451,-325.681627,0.00017977,2]
[401287086,1768107042460,-283.560848,0.00017977,2]
[401287088,1768107042470,-181.441627,0.00017977,2]
[401287089,1768107042479,-325.681627,0.00017977,2]
[401287092,1768107042489,-151.0,0.00017977,2]
[401287094,1768107042499,-151.0,0.00017977,2]
[401287096,1768107042508,-283.560848,0.00017977,2]
[401287097,1768107042518,-181.441627,0.00017977,2]
[401287099,1768107042527,-325.681627,0.00017977,2]
[401287102,1768107042537,-283.560848,0.00017977,2]
[401287104,1768107042547,-181.441627,0.00017977,2]
[401287106,1768107042556,-325.681627,0.00017977,2]
[401287108,1768107042566,-849.021901,0.00017977,2]
[401287110,1768107042575,-283.560848,0.00017977,2]
[401287112,1768107042585,-849.021901,0.00017977,2]
[401287114,1768107042600,-151.0,0.00017977,2]
[401287116,1768107042610,-151.0,0.00017977,2]
[401287118,1768107042619,-849.021901,0.00017977,2]
[401287120,1768107042629,-151.0,0.00017977,2]
[401287122,1768107042638,-151.0,0.00017977,2]
[401287124,1768107042648,-849.021901,0.00017977,2]
[401287126,1768107042657,-151.0,0.00017977,2]
[401287128,1768107042667,-151.0,0.00017977,2]
[401287130,1768107042676,-178.380437,0.00017977,2]
[401287131,1768107042685,-178.380437,0.00017977,2]
[401287134,1768107042695,-178.380437,0.00017977,2]
[401287136,1768107042705,-178.380437,0.00017977,2]
[401287138,1768107042714,-151.0,0.00017977,2]
[401287140,1768107042724,-151.0,0.00017977,2]
[401287142,1768107042735,-151.0,0.00017977,2]
[401287144,1768107042744,-151.0,0.00017977,2]
[401287146,1768107042753,-151.0,0.00017977,2]
[401287148,1768107042762,-176.096172,0.00017977,2]
[401287150,1768107042772,-151.0,0.00017977,2]
[401287152,1768107042782,-151.0,0.00017977,2]
[401287154,1768107042791,-151.0,0.00017977,2]
[401287156,1768107042801,-151.0,0.00017977,2]
[401287158,1768107042811,-151.0,0.00017977,2]
[401287160,1768107042822,-151.0,0.00017977,2]
[401287162,1768107042832,-151.0,0.00017977,2]
[401287164,1768107042842,-155.213448,0.00017977,2]
[401287166,1768107042852,-151.000001,0.00017977,2]
[401287168,1768107042863,-151.0,0.00017977,2]
[401287170,1768107042872,-151.0,0.00017977,2]
[401287172,1768107042882,-151.0,0.00017977,2]
[401287174,1768107042892,-151.0,0.00017977,2]
[401287176,1768107042902,-151.0,0.00017977,2]
[401287178,1768107042912,-151.0,0.00017977,2]
[401287180,1768107042922,-151.0,0.00017977,2]
[401287182,1768107042932,-184.371786,0.00017977,2]
[401287184,1768107042942,-151.0,0.00017977,2]
[401287187,1768107042952,-151.0,0.00017977,2]
[401287189,1768107042962,-151.0,0.00017977,2]
[401287191,1768107042972,-151.0,0.00017977,2]
[401287193,1768107042981,-151.0,0.00017977,2]
[401287195,1768107042991,-173.87509,0.00017977,2]
[401287197,1768107043001,-151.0,0.00017977,2]
[401287199,1768107043010,-151.0,0.00017977,2]
[401287201,1768107043020,-173.87509,0.00017977,2]
[401287203,1768107043032,-151.0,0.00017977,2]
[401287205,1768107043042,-151.0,0.00017977,2]
[401287207,1768107043053,-151.0,0.00017977,2]
[401287209,1768107043063,-173.87509,0.00017977,2]
[401287211,1768107043073,-151.0,0.00017977,2]
[401287213,1768107043083,-151.0,0.00017977,2]
[401287215,1768107043093,-290.106307,0.00017977,2]
[401287217,1768107043104,-173.87509,0.00017977,2]
[401287219,1768107043115,-161.19253,0.00017977,2]
[401287221,1768107043125,-156.32776,0.00017977,2]
[401287223,1768107043135,-290.106307,0.00017977,2]
[401287225,1768107043144,-151.0,0.00017977,2]
[401287227,1768107043154,-290.106307,0.00017977,2]
[401287229,1768107043163,-151.0,0.00017977,2]
[401287231,1768107043173,-290.106307,0.00017977,2]
[401287233,1768107043184,-151.0,0.00017977,2]
[401287235,1768107043194,-151.0,0.00017977,2]
[401287237,1768107043204,-251.992378,0.00017977,2]
[401287239,1768107043214,-151.0,0.00017977,2]
[401287241,1768107043224,-151.0,0.00017977,2]
[401287243,1768107043235,-151.0,0.00017977,2]
[401287245,1768107043246,-151.0,0.00017977,2]
[401287248,1768107043255,-151.0,0.00017977,2]
[401287250,1768107043265,-151.0,0.00017977,2]
[401287252,1768107043275,-151.0,0.00017977,2]
[401287254,1768107043285,-151.0,0.00017977,2]
[401287256,1768107043295,-151.0,0.00017977,2]
[401287258,1768107043305,-151.0,0.00017977,2]
[401287260,1768107043320,-151.0,0.00017977,2]
[401287262,1768107043330,-168.066064,0.00017977,2]
[401287264,1768107043341,-167.165511,0.00017977,2]
[401287267,1768107043352,-151.0,0.00017977,2]
[401287269,1768107043362,-243.507281,0.00017977,2]
[401287271,1768107043373,-151.0,0.00017977,2]
[401287273,1768107043383,-354.978858,0.00017977,2]
[401287275,1768107043393,-162.325718,0.00017977,2]
[401287277,1768107043404,-151.0,0.00017977,2]
[401287279,1768107043414,-281.866395,0.00017977,2]
[401287281,1768107043425,-354.978858,0.00017977,2]
[401287283,1768107043435,-531.867306,0.00017977,2]
[401287285,1768107043445,-354.978858,0.00017977,2]
[401287288,1768107043455,-281.866395,0.00017977,2]
[401287291,1768107043465,-531.867306,0.00017977,2]
[401287294,1768107043476,-165.905863,0.00017977,2]
[401287297,1768107043485,-354.978858,0.00017977,2]
[401287300,1768107043495,-151.0,0.00017977,2]
[401287302,1768107043505,-281.866395,0.00017977,2]
[401287304,1768107043515,-531.867306,0.00017977,2]
[401287306,1768107043525,-281.866395,0.00017977,2]
[401287308,1768107043536,-151.0,0.00017977,2]
[401287310,1768107043547,-531.867306,0.00017977,2]
[401287312,1768107043558,-151.0,0.00017977,2]
[401287314,1768107043570,-151.0,0.00017977,2]
[401287317,1768107043581,-154.022445,0.00017977,2]
[401287319,1768107043593,-151.0,0.00017977,2]
[401287321,1768107043603,-420.125754,0.00017977,2]
[401287323,1768107043613,-154.022445,0.00017977,2]
[401287325,1768107043624,-151.0,0.00017977,2]
[401287327,1768107043635,-151.0,0.00017977,2]
[401287329,1768107043646,-420.125754,0.00017977,2]
[401287331,1768107043657,-154.022445,0.00017977,2]
[401287333,1768107043667,-151.0,0.00017977,2]
[401287335,1768107043678,-420.125754,0.00017977,2]
[401287337,1768107043688,-151.0,0.00017977,2]
[401287339,1768107043699,-154.022445,0.00017977,2]
[401287341,1768107043710,-420.125754,0.00017977,2]
[401287343,1768107043720,-193.874336,0.00017977,2]
[401287345,1768107043732,-193.874336,0.00017977,2]
[401287348,1768107043744,-193.874336,0.00017977,2]
[401287350,1768107043755,-203.441097,0.00017977,2]
[401287352,1768107043766,-193.874336,0.00017977,2]
[401287354,1768107043776,-151.0,0.00017977,2]
[401287356,1768107043787,-151.0,0.00017977,2]
[401287358,1768107043796,-290.142342,0.00017977,2]
[401287359,1768107043806,-176.897962,0.00017977,2]
[401287361,1768107043817,-162.641734,0.00017977,2]
[401287364,1768107043827,-12025.1273333,0.00017977,2]
[401287366,1768107043837,-151.0,0.00017977,2]
[401287368,1768107043849,-151.0,0.00017977,2]
[401287370,1768107043859,-151.0,0.00017977,2]
[401287372,1768107043870,-151.0,0.00017977,2]
[401287374,1768107043879,-151.0,0.00017977,2]
[401287376,1768107043889,-151.0,0.00017977,2]
[401287378,1768107043900,-151.0,0.00017977,2]
[401287380,1768107043910,-151.0,0.00017977,2]
[401287382,1768107043920,-151.0,0.00017977,2]
[401287384,1768107043930,-151.0,0.00017977,2]
[401287386,1768107043939,-151.0,0.00017977,2]
[401287388,1768107043950,-153.803305,0.00017977,2]
[401287390,1768107043961,-151.0,0.00017977,2]
[401287392,1768107043970,-151.0,0.00017977,2]
[401287394,1768107043980,-151.0,0.00017977,2]
[401287396,1768107043990,-159.513691,0.00017977,2]
[401287398,1768107044000,-151.0,0.00017977,2]
[401287400,1768107044010,-151.0,0.00017977,2]
[401287401,1768107044019,-430.836628,0.00017977,2]
[401287403,1768107044033,-430.836628,0.00017977,2]
[401287405,1768107044044,-154.441724,0.00017977,2]
[401287407,1768107044055,-154.441724,0.00017977,2]
[401287409,1768107044065,-430.836628,0.00017977,2]
[401287411,1768107044076,-430.836628,0.00017977,2]
[401287413,1768107044087,-154.441724,0.00017977,2]
[401287415,1768107044098,-154.441724,0.00017977,2]
[401287417,1768107044109,-961.615431,0.00017977,2]
[401287419,1768107044119,-430.836628,0.00017977,2]
[401287421,1768107044129,-961.615431,0.00017977,2]
[401287423,1768107044139,-430.836628,0.00017977,2]
[401287425,1768107044149,-154.441724,0.00017977,2]
[401287427,1768107044160,-961.615431,0.00017977,2]
[401287429,1768107044170,-430.836628,0.00017977,2]
[401287431,1768107044181,-154.441724,0.00017977,2]
[401287433,1768107044192,-961.615431,0.00017977,2]
[401287435,1768107044203,-430.836628,0.00017977,2]
[401287437,1768107044213,-244.230819,0.00017977,2]
[401287439,1768107044223,-154.441724,0.00017977,2]
[401287441,1768107044233,-244.230819,0.00017977,2]
[401287443,1768107044242,-154.441724,0.00017977,2]
[401287444,1768107044252,-961.615431,0.00017977,2]
[401287446,1768107044262,-961.615431,0.00017977,2]
[401287448,1768107044271,-244.230819,0.00017977,2]
[401287450,1768107044282,-244.230819,0.00017977,2]
[401287452,1768107044292,-961.615431,0.00017977,2]
[401287454,1768107044302,-500.0,0.00017982,2]
[401287456,1768107044317,-151.0,0.0001799,2]
[401287457,1768107044328,-151.0,0.0001799,2]
[401287458,1768107044338,-151.0,0.0001799,2]
[401287459,1768107044349,-151.0,0.0001799,2]
[401287460,1768107044359,-151.0,0.0001799,2]
[401287461,1768107044369,-151.0,0.0001799,2]
[401287462,1768107044380,-151.0,0.0001799,2]
[401287463,1768107044390,-151.0,0.0001799,2]
[401287464,1768107044400,-151.0,0.0001799,2]
[401287465,1768107044411,-161.936596,0.0001799,2]
[401287466,1768107044421,-242.505444,0.0001799,2]
[401287467,1768107044432,-161.936596,0.0001799,2]
[401287469,1768107044443,-161.936596,0.0001799,2]
[401287471,1768107044455,-162.638574,0.0001799,2]
[401287473,1768107044465,-161.936596,0.0001799,2]
[401287475,1768107044476,-181.422473,0.0001799,2]
[401287477,1768107044486,-181.422473,0.0001799,2]
[401287479,1768107044498,-181.422473,0.0001799,2]
[401287481,1768107044508,-181.422473,0.0001799,2]
[401287483,1768107044519,-175.422286,0.0001799,2]
[401287485,1768107044528,-151.0,0.0001799,2]
[401287486,1768107044539,-151.0,0.0001799,2]
[401287489,1768107044549,-151.0,0.0001799,2]
[401287491,1768107044559,-151.0,0.0001799,2]
[401287493,1768107044569,-151.0,0.0001799,2]
[401287494,1768107044581,-374.00177,0.0001799,2]
[401287496,1768107044591,-151.0,0.0001799,2]
[401287499,1768107044601,-374.00177,0.0001799,2]
[401287501,1768107044613,-374.00177,0.0001799,2]
[401287503,1768107044624,-296.864985,0.0001799,2]
[401287505,1768107044636,-374.00177,0.0001799,2]
[401287507,1768107044646,-296.864985,0.0001799,2]
[401287509,1768107044656,-296.864985,0.0001799,2]
[401287511,1768107044666,-151.0,0.0001799,2]
[401287513,1768107044676,-296.864985,0.0001799,2]
[401287515,1768107044687,-151.0,0.0001799,2]
[401287517,1768107044698,-151.0,0.0001799,2]
[401287519,1768107044708,-248.120587,0.0001799,2]
[401287521,1768107044718,-151.0,0.0001799,2]
[401287523,1768107044728,-165.914728,0.0001799,2]
[401287525,1768107044739,-151.0,0.0001799,2]
[401287527,1768107044749,-151.0,0.0001799,2]
[401287529,1768107044760,-151.0,0.0001799,2]
[401287531,1768107044771,-151.0,0.0001799,2]
[401287533,1768107044781,-151.0,0.0001799,2]
[401287535,1768107044791,-151.0,0.0001799,2]
[401287537,1768107044802,-173.87509,0.0001799,2]
[401287539,1768107044812,-151.0,0.0001799,2]
[401287541,1768107044822,-151.0,0.0001799,2]
[401287543,1768107044833,-173.87509,0.0001799,2]
[401287546,1768107044844,-151.0,0.0001799,2]
[401287547,1768107044856,-174.860945,0.0001799,2]
[401287549,1768107044866,-151.0,0.0001799,2]
[401287551,1768107044877,-173.87509,0.0001799,2]
[401287553,1768107044887,-254.7286,0.0001799,2]
[401287555,1768107044897,-151.0,0.0001799,2]
[401287557,1768107044907,-290.106307,0.0001799,2]
[401287559,1768107044917,-173.87509,0.0001799,2]
[401287561,1768107044928,-290.106307,0.0001799,2]
[401287563,1768107044939,-151.0,0.0001799,2]
[401287565,1768107044950,-290.106307,0.0001799,2]
[401287567,1768107044960,-151.0,0.0001799,2]
[401287569,1768107044972,-290.106307,0.0001799,2]
[401287571,1768107044983,-151.0,0.0001799,2]
[401287573,1768107044993,-151.0,0.0001799,2]
[401287575,1768107045003,-151.0,0.0001799,2]
[401287576,1768107045013,-151.0,0.0001799,2]
[401287577,1768107045023,-151.0,0.0001799,2]
[401287578,1768107045039,-151.0,0.0001799,2]
[401287579,1768107045049,-151.0,0.0001799,2]
[401287580,1768107045060,-151.0,0.0001799,2]
[401287581,1768107045071,-151.0,0.0001799,2]
[401287582,1768107045081,-1027.38903097,0.0001799,2]
[401287583,1768107045092,-1027.38903097,0.0001799,2]
[401287584,1768107045105,-300.0,0.00017999,2]
[401287585,1768107045115,-509.03,0.00017999,2]
[401287586,1768107045125,-300.0,0.00017999,2]
[401287587,1768107045135,-666.0,0.00017999,2]
[401287588,1768107045145,-300.0,0.00017999,2]
[401287589,1768107045155,-683.01725036,0.00017999,2]
[401287590,1768107045165,-308.46096969,0.00017999,2]
[401287591,1768107045175,-300.0,0.00017999,2]
[401287592,1768107045186,-666.0,0.00017999,2]
[401287593,1768107045196,-157.46483919,0.00018,2]
[401287594,1768107045208,-155.3577338,0.00018,2]
[401287595,1768107045219,-158.29808248,0.00018,2]
[401287596,1768107045230,-157.21321189,0.00018,2]
[401287597,1768107045241,-156.22128884,0.00018,2]
[401287598,1768107045253,-155.84220397,0.00018,2]
[401287599,1768107045264,-152.06553308,0.00018,2]
[401287600,1768107045275,-152.68088658,0.00018,2]
[401287601,1768107045286,-151.98869863,0.00018,2]
[401287602,1768107045296,-3142446.34111678,0.00018,2]
[401287603,1768107045320,-634.23642522,0.00018,2]
[401287604,1768107045332,-588.0,0.00018,2]
[401287605,1768107045607,-515.20387664,0.00017633,2]
[401287606,1768107045619,-1161.0,0.00017633,2]
[401287607,1768107045636,-500.0,0.00017633,2]
[401287611,1768107046316,-609.07483732,0.00017633,2]
[401287612,1768107046329,-1494.489,0.00017633,2]
[401287613,1768107046347,-3476.10682447,0.00017633,2]
[401287614,1768107046360,-961.615431,0.00017977,2]
[401287615,1768107046370,-244.230819,0.00017977,2]
[401287616,1768107046385,-244.230819,0.00017977,2]
[401287617,1768107046396,-638.441093,0.00017977,2]
[401287618,1768107046407,-34.04229934,0.00017977,2]
[401287619,1768107046420,-604.39879366,0.00017977,2]
[401287620,1768107046430,-11.32541765,0.00017977,2]
[401287621,1768107046443,-139.67458235,0.00017977,2]
[401287622,1768107046454,-244.230819,0.00017977,2]
[401287623,1768107046464,-151.0,0.00017977,2]
[401287624,1768107046475,-244.230819,0.00017977,2]
[401287625,1768107046486,-638.441093,0.00017977,2]
[401287626,1768107046497,-137.29495674,0.00017977,2]
[401287627,1768107046511,-501.14613626,0.00017977,2]
[401287628,1768107046522,-151.0,0.00017977,2]
[401287629,1768107046533,-406.18333267,0.00018,2]
[401287630,1768107046546,-537.47173744,0.00018,2]
[401287682,1768107476681,271.98,8.421e-05,2]
[401287683,1768107476720,271.98,8.847e-05,2]
[401287684,1768107476781,271.98,9.272e-05,2]
[401287685,1768107476969,271.98,9.698e-05,2]
[401287686,1768107477268,271.98,0.00010124,2]
[401287687,1768107477474,271.98,0.0001055,2]
[401287688,1768107477668,271.98,0.00010976,2]
[401287689,1768107477982,271.98,0.00011401,2]
[401287690,1768107478170,271.98,0.00011827,2]
[401287691,1768107478367,271.98,0.00012253,2]
[401287692,1768107478566,271.98,0.00012679,2]
[401287693,1768107478765,271.98,0.00013105,2]
[401287694,1768107478960,271.98,0.0001353,2]
[401287695,1768107479162,271.98,0.00013956,2]
[401287709,1768107603404,185.0,0.00014,5]
[401287733,1768108138398,499.0,0.00027397,120]
[401287760,1768108232531,-271.98,0.00014382,2]